bitfinex/quotes_ETHUSD_20240810
["timestamp","ask_amount","ask_price","bid_price","bid_amount"]
[1723255197733,6.13532,2603.6,2603.1,1.817348]
[1723255197894,9.97624,2603.6,2603.1,1.817348]
[1723255198102,6.13532,2603.6,2603.1,1.817348]
[1723255199209,9.97627,2603.6,2603.1,1.817348]
[1723255199594,6.13532,2603.6,2603.1,1.817348]
[1723255199840,6.13532,2603.6,2603.0,6.84171]
[1723255199841,6.13502,2603.8,2603.2,0.8659058]
[1723255200061,2.2944,2603.8,2603.3,7.68244]
[1723255200359,2.2944,2604.0,2603.5,7.6817]
[1723255200519,2.2944,2604.0,2603.6,0.76817]
[1723255200719,2.2944,2604.0,2603.5,3.84083]
[1723255201015,3.84001,2604.2,2603.6,3.91754756]
[1723255201016,2.2944,2604.2,2603.6,3.91754756]
[1723255201273,2.2944,2604.2,2603.8,7.68088]
[1723255201561,2.2944,2604.2,2603.8,3.84044]
[1723255201919,2.2944,2604.2,2603.7,3.84067]
[1723255202125,2.2944,2604.2,2603.8,4.224517]
[1723255203524,2.2944,2604.2,2603.3,3.84125]
[1723255203525,7.952,2603.9,2602.3,7.49]
[1723255203819,2.2925,2604.1,2601.5,2.72887759]
[1723255203820,2.2925,2602.0,2601.5,2.72887759]
[1723255204032,2.2925,2602.0,2600.2,3.84575]
[1723255204033,0.1,2601.8,2600.0,2.2937]
[1723255204266,3.84363,2601.8,2600.2,3.8458]
[1723255204448,3.84363,2601.8,2599.7,0.66488221]
[1723255204449,3.51330375,2601.9,2600.4,2.2937]
[1723255204764,3.84345,2601.9,2600.9,3.84475]
[1723255204919,2.2925,2602.0,2600.7,7.82108]
[1723255205145,2.2925,2602.0,2600.9,3.84481]
[1723255205341,2.2925,2602.0,2600.4,2.2937]
[1723255205342,3.84364,2601.7,2600.7,3.84509]
[1723255205585,6.94204,2602.8,2601.1,3.976]
[1723255205586,2.2925,2602.7,2601.1,3.976]
[1723255205882,2.2925,2602.7,2600.8,0.769025]
[1723255205883,2.2925,2602.7,2601.8,3.84348]
[1723255206091,3.84203,2602.8,2601.9,0.384348]
[1723255206253,3.84175,2603.0,2602.1,3.84304]
[1723255206459,0.384175,2602.9,2602.1,3.84304]
[1723255206657,3.84202,2602.8,2601.9,4.227668]
[1723255206856,3.84163,2603.1,2601.9,4.227668]
[1723255207176,2.2925,2603.3,2602.3,3.84274]
[1723255207177,2.52175,2603.3,2602.3,3.84274]
[1723255207483,2.52175,2603.3,2602.4,0.07683417]
[1723255207783,2.52175,2603.3,2602.4,0.46879159]
[1723255208742,3.84175,2603.0,2602.4,0.39195742]
[1723255208940,3.84181,2603.0,2602.0,4.8159068]
[1723255209378,3.8419,2602.9,2602.0,4.8159068]
[1723255209594,3.8419,2602.9,2602.1,0.52002548]
[1723255209882,3.8419,2602.9,2602.2,0.55]
[1723255210644,3.84215,2602.8,2602.1,0.52002548]
[1723255211079,3.84216,2602.7,2602.1,0.52002548]
[1723255211345,3.84216,2602.7,2602.2,0.39427923]
[1723255211546,2.52175,2603.3,2601.5,3.84388]
[1723255211748,2.52175,2603.3,2600.9,2.2937]
[1723255211749,3.84346,2601.9,2600.9,2.2937]
[1723255211984,3.84331,2602.0,2601.2,3.84435]
[1723255212342,3.84234,2602.6,2601.3,3.84418]
[1723255212343,3.8429,2602.2,2601.3,3.84418]
[1723255212546,4.611454,2602.2,2601.3,0.768868]
[1723255212746,4.611454,2602.2,2601.0,0.22937]
[1723255212950,3.061054,2602.2,2601.0,0.22937]
[1723255213146,2.2925,2602.2,2601.0,4.07391]
[1723255213573,3.84395,2601.5,2600.9,2.2937]
[1723255213773,3.8441,2601.4,2600.7,3.84497]
[1723255213973,3.84385,2601.6,2600.8,3.84496]
[1723255214175,3.84381,2601.6,2600.9,3.84482]
[1723255214398,3.84394,2601.5,2601.0,0.384482]
[1723255214562,3.84394,2601.5,2600.7,3.84508]
[1723255214769,3.84394,2601.5,2600.8,3.84495]
[1723255215069,3.84394,2601.5,2599.6,4.33152]
[1723255215070,2.2925,2601.4,2600.2,3.84574]
[1723255215266,3.84467,2601.0,2600.3,3.8457]
[1723255215461,6.13661,2601.4,2600.5,3.84539]
[1723255215688,3.84383,2601.6,2600.9,3.84481]
[1723255215884,3.8435,2601.8,2601.0,3.92151918]
[1723255216063,3.84388,2601.6,2601.0,1.0828821]
[1723255216270,3.84394,2601.5,2600.8,6.13859]
[1723255217615,3.84423,2601.3,2600.8,2.2937]
[1723255217770,3.84441,2601.2,2600.4,14.47856]
[1723255218108,3.84497,2600.8,2600.1,3.8459]
[1723255218280,2.4869,2601.5,2600.0,2.3221]
[1723255218281,3.84522,2600.7,2600.0,2.3221]
[1723255218485,7.69048,2600.7,2600.0,2.3221]
[1723255218674,3.84522,2600.7,2600.0,2.3221]
[1723255219294,3.84571,2600.3,2599.7,3.84654]
[1723255220284,3.84528,2600.6,2599.9,7.69246]
[1723255220483,3.84515,2600.7,2600.0,0.85385315]
[1723255220689,3.84483,2600.9,2600.1,7.69178]
[1723255220911,3.84483,2600.9,2600.0,0.85385315]
[1723255220912,3.84465,2601.1,2600.4,3.84554]
[1723255221123,3.84427,2601.3,2600.5,0.07689686]
[1723255221287,3.8444,2601.2,2600.6,3.84526]
[1723255221487,3.844,2601.5,2600.7,3.84511]
[1723255221920,3.844,2601.5,2600.8,0.07688444]
[1723255221921,3.84406,2601.5,2600.8,0.07688444]
[1723255222089,3.84424,2601.3,2600.6,0.39221569]
[1723255222293,3.84424,2601.3,2600.6,3.0]
[1723255222620,3.84439,2601.2,2600.6,3.84525]
[1723255223129,3.84439,2601.2,2600.5,3.8453]
[1723255223431,3.84454,2601.1,2600.5,3.8453]
[1723255223626,3.84454,2601.1,2600.5,5.663393]
[1723255223949,3.84454,2601.1,2600.5,9.508703]
[1723255224239,3.84454,2601.1,2600.5,9.508693]
[1723255224734,3.84454,2601.1,2600.5,5.663393]
[1723255224895,3.84424,2601.3,2600.7,3.84511]
[1723255225096,3.84461,2601.1,2600.6,3.0]
[1723255225319,3.84461,2601.1,2600.6,6.84526]
[1723255225563,3.84397,2601.5,2600.6,3.0]
[1723255225763,3.84397,2601.5,2600.5,1.818093]
[1723255225916,3.84397,2601.5,2600.6,2.39898896]
[1723255226113,3.8437,2601.7,2600.9,3.84472]
[1723255226417,3.8437,2601.7,2601.1,3.84439]
[1723255226829,3.8437,2601.7,2600.6,6.16729]
[1723255226830,0.80459506,2601.9,2600.7,3.84501]
[1723255227061,3.84432,2601.3,2600.7,3.84501]
[1723255228124,3.84432,2601.3,2600.7,7.69002]
[1723255228447,3.84342,2601.9,2601.2,3.84423]
[1723255228647,3.84342,2601.9,2601.1,3.8445]
[1723255228852,3.84373,2601.7,2601.1,3.8445]
[1723255229869,3.84371,2601.7,2601.1,3.8445]
[1723255230026,3.84338,2601.9,2601.2,3.84428]
[1723255230224,3.84338,2601.9,2601.3,3.84422]
[1723255230453,3.84309,2602.1,2601.4,3.844]
[1723255230657,3.84309,2602.1,2601.5,3.84392]
[1723255230834,7.68624,2602.1,2601.5,3.84392]
[1723255231043,3.84309,2602.1,2601.6,3.84378]
[1723255231249,3.84309,2602.1,2601.5,3.84392]
[1723255231563,3.84309,2602.1,2601.5,3.84393]
[1723255231774,7.68569,2602.3,2601.6,3.84375]
[1723255232061,4.860069,2602.3,2601.7,3.84363]
[1723255232265,6.32943,2602.5,2601.7,3.84354]
[1723255232467,3.84223,2602.7,2601.9,3.84324]
[1723255232765,3.84223,2602.7,2602.1,3.84303]
[1723255232963,0.632913,2602.6,2602.1,3.84303]
[1723255233271,4.475253,2602.6,2602.1,3.84303]
[1723255233565,0.632913,2602.6,2601.7,3.84355]
[1723255233764,3.843,2602.2,2601.6,3.84377]
[1723255234436,2.4869,2602.8,2601.4,9.8121]
[1723255234643,3.8421,2602.8,2601.8,2.3221]
[1723255234954,3.8421,2602.8,2602.2,3.8428]
[1723255235158,3.8421,2602.8,2601.6,3.84368]
[1723255235159,3.8429,2602.2,2601.6,3.84368]
[1723255235359,3.8429,2602.2,2601.6,7.68737]
[1723255235535,3.8429,2602.2,2601.6,3.84368]
[1723255235947,8.454494,2602.2,2601.5,7.68768]
[1723255236243,3.84313,2602.1,2601.5,3.84384]
[1723255236448,3.84313,2602.1,2601.5,7.68769]
[1723255236770,3.84305,2602.1,2601.5,3.84384]
[1723255236982,3.84305,2602.1,2601.5,7.68768]
[1723255237275,3.8429,2602.2,2601.6,3.8437]
[1723255237885,3.84305,2602.1,2601.5,3.84384]
[1723255238471,3.8427,2602.4,2601.8,3.8434]
[1723255238688,7.68483,2602.6,2601.8,3.8434]
[1723255238837,4.91328811,2602.5,2601.9,3.84323]
[1723255239538,3.84175,2603.0,2602.3,3.84262]
[1723255239539,3.84183,2603.0,2602.3,3.84262]
[1723255239760,3.84197,2602.9,2602.4,3.8426]
[1723255240085,2.4076,2603.1,2602.4,3.8426]
[1723255240086,0.24076,2603.0,2602.5,3.84237]
[1723255240240,3.84136,2603.3,2602.6,0.07683547]
[1723255240589,2.4076,2603.4,2602.7,3.84204]
[1723255240753,0.24076,2603.3,2602.9,3.84183]
[1723255241260,0.24076,2603.3,2602.9,3.84177]
[1723255241462,2.4076,2603.8,2603.2,3.8414]
[1723255241675,7.68126,2603.8,2603.2,3.84133]
[1723255241876,3.84069,2603.7,2603.2,3.84133]
[1723255242058,0.768131,2603.6,2603.2,3.84133]
[1723255242259,0.768131,2603.6,2602.6,6.17809]
[1723255242494,0.768131,2603.6,2602.6,3.84219]
[1723255242642,3.84136,2603.3,2602.6,3.84219]
[1723255244037,0.768131,2603.6,2602.3,3.84274]
[1723255244038,3.84171,2603.1,2602.3,3.84274]
[1723255244388,6.2998,2603.2,2602.2,2.4715]
[1723255244586,3.84228,2602.7,2602.2,2.4715]
[1723255244810,3.84212,2602.8,2602.2,2.4715]
[1723255244991,4.610512,2602.8,2602.2,2.4715]
[1723255245336,8.452612,2602.8,2602.2,2.4715]
[1723255245492,4.610492,2602.8,2602.2,6.31439]
[1723255246217,4.610492,2602.8,2602.2,10.15715]
[1723255246377,3.8421,2602.8,2602.2,10.15715]
[1723255246589,3.84187,2602.9,2602.4,3.84255]
[1723255246931,7.68365,2603.0,2602.4,3.84255]
[1723255247234,3.84194,2602.9,2602.4,3.84255]
[1723255247379,3.84202,2602.8,2602.2,2.4715]
[1723255247579,3.84232,2602.6,2602.0,7.68625]
[1723255248089,3.84232,2602.6,2602.1,3.84304]
[1723255248613,3.84202,2602.8,2602.0,3.8431]
[1723255248814,3.84269,2602.4,2601.9,2.4715]
[1723255249113,3.84308,2602.1,2601.6,2.4715]
[1723255249315,3.84294,2602.2,2601.4,19.8]
[1723255249522,3.84367,2601.7,2601.3,2.4715]
[1723255249811,3.84337,2601.9,2601.3,2.4715]
[1723255249812,0.384367,2601.6,2601.3,2.4715]
[1723255250028,3.84367,2601.7,2601.3,2.4715]
[1723255250946,3.84381,2601.6,2601.0,3.84459]
[1723255251142,3.84367,2601.7,2600.9,9.9615]
[1723255251340,3.84367,2601.7,2601.0,3.0]
[1723255251566,3.84388,2601.6,2601.0,6.84464]
[1723255252245,3.84398,2601.5,2601.0,3.0]
[1723255252670,3.84367,2601.7,2601.0,6.84455]
[1723255252981,3.84381,2601.6,2601.0,3.0]
[1723255253694,3.84381,2601.6,2601.0,6.84466]
[1723255253855,4.228037,2601.7,2601.0,10.68922]
[1723255254045,4.228127,2601.7,2600.5,6.31688]
[1723255254243,3.84468,2601.0,2600.5,2.4715]
[1723255254557,3.84491,2600.9,2600.3,3.84567]
[1723255255287,3.84504,2600.8,2600.2,16.15579]
[1723255255583,3.84504,2600.8,2600.0,3.84608]
[1723255255584,3.8453,2600.6,2600.0,3.84608]
[1723255256290,3.84518,2600.7,2599.8,3.84636]
[1723255256845,3.84518,2600.7,2599.9,3.8462]
[1723255257082,3.84518,2600.7,2599.7,2.4715]
[1723255257083,0.630348,2600.7,2600.2,3.84576]
[1723255257289,7.68981,2600.9,2600.2,3.84576]
[1723255257646,3.84488,2600.9,2600.2,3.84575]
[1723255257919,3.84488,2600.9,2600.3,3.84561]
[1723255258182,3.84461,2601.1,2600.4,3.84545]
[1723255258591,3.84467,2601.0,2600.4,3.84545]
[1723255258762,2.3109,2601.2,2600.2,3.84577]
[1723255258763,3.84507,2600.8,2600.2,3.84577]
[1723255258948,4.229577,2600.8,2600.2,3.84577]
[1723255259287,3.84538,2600.6,2600.0,6.26299]
[1723255259452,3.84538,2600.6,2599.8,4.0935]
[1723255259652,3.84601,2600.1,2599.4,3.84701]
[1723255260144,3.84631,2599.9,2599.3,2.4169]
[1723255260348,7.69213,2600.1,2599.4,3.84699]
[1723255260584,3.84647,2599.8,2599.2,3.84726]
[1723255260771,3.84642,2599.9,2599.2,7.69444]
[1723255260971,3.84642,2599.9,2599.2,3.84721]
[1723255260972,7.69285,2599.9,2599.2,3.84721]
[1723255261180,3.84668,2599.7,2599.1,3.84746]
[1723255261496,0.769285,2599.8,2599.2,3.84722]
[1723255261862,0.769285,2599.8,2599.0,6.26441]
[1723255262070,0.4615655,2599.7,2599.0,6.26441]
[1723255262411,4.3081555,2599.7,2599.1,3.8474]
[1723255262589,3.84677,2599.6,2599.0,3.84761]
[1723255262763,0.43081555,2599.6,2599.3,3.84704]
[1723255262968,10.00337,2600.0,2599.4,3.84703]
[1723255263280,6.15708,2600.0,2599.4,3.84703]
[1723255263607,3.84593,2600.2,2599.5,0.0769369]
[1723255263608,3.84591,2600.2,2599.5,0.0769369]
[1723255263907,3.84591,2600.2,2599.4,3.84695]
[1723255263908,5.061603,2600.2,2599.4,3.84695]
[1723255264289,3.84615,2600.0,2599.4,3.84695]
[1723255264492,0.8907753,2600.0,2599.1,2.2936]
[1723255264694,3.8469,2599.5,2598.9,3.84775]
[1723255265190,7.69389,2599.5,2598.9,3.84775]
[1723255265453,4.616289,2599.5,2598.8,0.1245081]
[1723255265572,3.8469,2599.5,2598.8,0.1245081]
[1723255266493,3.84727,2599.3,2598.8,0.1245081]
[1723255266822,7.69556,2598.9,2598.8,0.1245081]
[1723255267104,8.465116,2598.9,2598.8,0.1245081]
[1723255267421,14.749296,2598.9,2598.8,0.1245081]
[1723255267707,17.749296,2598.9,2598.8,0.1245081]
[1723255267908,13.901516,2598.9,2598.8,0.1245081]
[1723255268273,17.749296,2598.9,2598.8,0.1245081]
[1723255269106,13.901516,2598.9,2598.8,0.1245081]
[1723255269334,1.26611666,2599.5,2598.9,3.84766]
[1723255269547,1.26611666,2599.5,2599.1,3.84734]
[1723255269844,2.4364,2599.9,2599.0,0.03452053]
[1723255270055,3.8473,2599.3,2599.2,0.03922448]
[1723255270256,0.24364,2599.8,2598.8,0.1245081]
[1723255270408,3.84774,2599.0,2598.8,0.1245081]
[1723255270607,3.84741,2599.2,2598.8,0.1245081]
[1723255270930,3.84708,2599.4,2598.8,0.1245081]
[1723255271136,3.84679,2599.6,2598.9,3.84775]
[1723255271443,3.84735,2599.2,2598.8,0.1245081]
[1723255272941,3.84709,2599.4,2598.8,3.9724081]
[1723255273105,3.8469,2599.5,2598.8,0.1245081]
[1723255273321,3.84705,2599.4,2598.8,3.9724281]
[1723255273848,3.84719,2599.3,2598.9,0.03824029]
[1723255274154,3.84742,2599.2,2598.9,0.03824029]
[1723255274737,3.84708,2599.4,2598.9,0.03824029]
[1723255274934,3.84734,2599.2,2598.9,0.03824029]
[1723255275251,3.84708,2599.4,2598.9,0.03824029]
[1723255275753,3.84691,2599.5,2598.9,3.88592029]
[1723255275959,3.8472,2599.3,2598.9,0.03824029]
[1723255276658,3.84749,2599.1,2598.9,0.03824029]
[1723255276869,0.652655,2599.7,2598.9,0.03824029]
[1723255276870,3.84763,2599.0,2598.9,0.03824029]
[1723255277157,3.84744,2599.2,2598.9,0.03824029]
[1723255278659,3.84762,2599.1,2598.9,0.03824029]
[1723255278826,3.84763,2599.0,2598.9,0.03824029]
[1723255279014,3.8473,2599.3,2598.9,0.03824029]
[1723255279212,3.84751,2599.1,2598.9,0.03824029]
[1723255279739,3.84749,2599.1,2598.9,0.03824029]
[1723255280495,3.8473,2599.3,2598.9,0.03824029]
[1723255280623,0.38473,2599.2,2598.9,0.03824029]
[1723255280814,7.69526,2599.0,2598.9,0.03824029]
[1723255281151,7.69485,2599.2,2598.9,0.03824029]
[1723255281351,3.84739,2599.2,2598.9,0.03824029]
[1723255281567,3.84739,2599.2,2598.8,0.1245081]
[1723255281771,3.84758,2599.1,2599.0,0.03642114]
[1723255281971,3.84768,2599.0,2598.8,0.1245081]
[1723255282183,4.232259,2599.1,2598.8,0.1245081]
[1723255282768,3.84769,2599.0,2598.8,0.1245081]
[1723255282970,4.2709329,2599.0,2598.8,0.1245081]
[1723255283173,3.84778,2598.9,2598.8,0.1245081]
[1723255283731,0.4232429,2599.0,2598.8,0.1245081]
[1723255284067,3.84778,2598.9,2598.8,0.1245081]
[1723255284681,4.2708829,2599.0,2598.8,0.1245081]
[1723255284843,0.42708829,2598.9,2598.8,0.1245081]
[1723255285271,4.27486829,2598.9,2598.8,0.1245081]
[1723255288283,3.84744,2599.2,2598.8,0.1245081]
[1723255288639,3.84743,2599.2,2598.8,0.1245081]
[1723255288852,7.69485,2599.2,2598.9,0.03649403]
[1723255289085,0.769485,2599.2,2598.9,0.03649403]
[1723255289381,3.84728,2599.3,2598.9,0.03649403]
[1723255289587,3.84711,2599.4,2598.9,0.03649403]
[1723255289783,3.84727,2599.3,2598.9,0.03649403]
[1723255289990,3.84711,2599.4,2598.9,0.03649403]
[1723255290545,3.84743,2599.2,2598.9,0.03649403]
[1723255290750,3.84742,2599.2,2598.9,0.03649403]
[1723255290969,3.84763,2599.0,2598.9,0.03649403]
[1723255292466,7.69526,2599.0,2598.9,0.03649403]
[1723255294700,3.84763,2599.0,2598.9,0.03649403]
[1723255295159,3.84742,2599.2,2598.9,0.03649403]
[1723255295361,7.69489,2599.2,2598.9,0.03649403]
[1723255295577,3.84727,2599.3,2598.9,0.03649403]
[1723255295791,3.8475,2599.1,2598.9,0.03649403]
[1723255297101,4.499335,2599.7,2599.0,3.8476]
[1723255297309,3.84638,2599.9,2599.2,3.84719]
[1723255297514,3.84638,2599.9,2599.4,3.84703]
[1723255297803,3.50720441,2600.5,2599.3,2.3111]
[1723255297980,3.84675,2599.6,2599.5,0.03463654]
[1723255298178,3.84675,2599.6,2599.3,2.3111]
[1723255298377,3.8465,2599.8,2599.5,0.03463654]
[1723255298693,3.8465,2599.8,2599.3,6.15825]
[1723255299009,3.84621,2600.0,2599.6,0.03446352]
[1723255299323,0.35072044,2600.4,2598.9,3.84773]
[1723255299324,3.84644,2599.8,2599.7,0.03446352]
[1723255299505,3.8471,2599.4,2598.9,2.3111]
[1723255300416,3.84727,2599.3,2598.8,0.1245081]
[1723255300572,7.69456,2599.3,2598.8,0.1245081]
[1723255300775,3.84697,2599.5,2598.8,3.9723981]
[1723255300985,3.84697,2599.5,2598.8,3.9723381]
[1723255300986,3.84706,2599.4,2598.8,3.9723381]
[1723255301404,3.84719,2599.3,2598.8,0.1245081]
[1723255301577,3.84735,2599.2,2598.8,0.1245081]
[1723255301901,3.84648,2599.8,2598.8,0.1245081]
[1723255301902,3.84771,2599.0,2598.8,0.1245081]
[1723255302774,3.8474,2599.2,2598.8,0.1245081]
[1723255303300,0.769452,2599.2,2598.8,0.1245081]
[1723255303481,3.84773,2599.0,2598.8,0.1245081]
[1723255304317,3.84771,2599.0,2598.8,0.1245081]
[1723255304476,3.84778,2598.9,2598.8,0.1245081]
[1723255305776,3.84705,2599.4,2598.9,3.8477]
[1723255306017,3.84733,2599.3,2598.8,2.4356081]
[1723255306798,3.84765,2599.0,2598.8,0.1245081]
[1723255307002,7.69556,2598.9,2598.8,0.1245081]
[1723255307204,12.87479627,2598.9,2598.8,0.1245081]
[1723255308434,16.72257627,2598.9,2598.8,0.1245081]
[1723255308622,12.87479627,2598.9,2598.8,0.1245081]
[1723255308946,14.4031259,2598.9,2598.8,0.1245081]
[1723255309151,13.07166963,2598.9,2598.8,0.1245081]
[1723255309436,14.40331459,2598.9,2598.8,0.1245081]
[1723255309636,14.40330329,2598.9,2598.8,0.1245081]
[1723255310250,14.40329395,2598.9,2598.8,0.1245081]
[1723255311348,3.8498,2597.6,2596.9,2.3111]
[1723255311565,3.84993,2597.5,2596.9,2.696177]
[1723255311848,3.84993,2597.5,2596.9,6.546917]
[1723255312542,3.85,2597.4,2596.9,2.696177]
[1723255312924,3.84993,2597.5,2597.0,3.85058]
[1723255313120,3.8498,2597.6,2597.0,1.0397547]
[1723255313326,3.85009,2597.4,2596.9,2.696177]
[1723255313533,3.85009,2597.4,2596.9,2.3111]
[1723255313841,3.85042,2597.2,2596.6,6.16227]
[1723255314365,3.85042,2597.2,2596.7,3.85101]
[1723255314852,3.85015,2597.3,2596.7,3.85094]
[1723255315437,3.85031,2597.2,2596.7,3.85094]
[1723255315856,4.235088,2597.4,2596.8,3.85088]
[1723255316168,4.235088,2597.4,2596.7,3.85092]
[1723255316351,4.235088,2597.4,2596.8,3.8508]
[1723255316777,7.69959,2597.6,2596.9,3.85071]
[1723255317075,3.0,2598.2,2597.0,2.4411]
[1723255317076,3.84899,2598.1,2597.0,2.4411]
[1723255317283,2.77888916,2598.8,2597.0,2.4411]
[1723255317284,3.84875,2598.3,2597.2,2.4411]
[1723255317465,3.84875,2598.3,2597.6,3.84956]
[1723255317662,3.84854,2598.4,2597.8,2.4411]
[1723255317827,3.84854,2598.4,2597.8,6.29045]
[1723255318032,4.618237,2598.4,2597.8,6.29045]
[1723255318260,3.84843,2598.5,2597.8,6.29045]
[1723255318577,3.84815,2598.7,2598.0,3.84911]
[1723255318729,3.84826,2598.6,2598.0,3.84911]
[1723255319060,3.84815,2598.7,2598.0,7.69814]
[1723255319238,4.232965,2598.7,2598.0,7.69814]
[1723255319441,4.4502377,2599.3,2598.2,2.4411]
[1723255319674,3.84727,2599.3,2598.6,3.84814]
[1723255319881,3.84695,2599.5,2598.8,3.84792]
[1723255320044,4.231645,2599.5,2598.8,3.84784]
[1723255320248,0.384695,2599.5,2598.6,3.84814]
[1723255320476,0.384695,2599.5,2598.3,2.4411]
[1723255320477,3.84785,2598.9,2598.3,2.4411]
[1723255320831,3.84785,2598.9,2598.3,6.28971]
[1723255321039,3.84814,2598.7,2598.3,2.4411]
[1723255321537,2.3695,2599.2,2598.3,2.4411]
[1723255321739,3.84836,2598.6,2598.3,2.4411]
[1723255322002,3.84833,2598.6,2598.0,6.3348]
[1723255322279,2.3695,2599.2,2597.7,2.4858]
[1723255322280,3.84886,2598.2,2597.7,2.4858]
[1723255322574,3.84886,2598.2,2597.4,5.324]
[1723255322575,3.84772,2599.0,2598.3,2.4858]
[1723255322782,2.2862,2599.2,2598.3,2.4858]
[1723255322783,3.84749,2599.1,2598.5,3.84827]
[1723255322947,7.69489,2599.2,2598.5,3.84827]
[1723255323279,3.84743,2599.2,2598.5,3.84827]
[1723255323460,3.0,2599.5,2598.3,3.119251]
[1723255323461,3.8478,2598.9,2598.3,3.119251]
[1723255323661,3.84779,2598.9,2598.3,2.4858]
[1723255323983,3.84868,2598.3,2597.8,2.4858]
[1723255324275,3.84891,2598.2,2597.8,2.4858]
[1723255324841,3.84899,2598.1,2597.8,2.4858]
[1723255325139,3.8477,2599.0,2594.8,7.30239849]
[1723255325140,3.84937,2597.9,2597.4,2.4858]
[1723255325644,3.84902,2598.1,2597.4,2.4858]
[1723255325791,3.84875,2598.3,2597.4,2.4858]
[1723255325792,3.84875,2598.3,2597.7,3.84954]
[1723255326150,3.0,2598.5,2597.4,6.33573]
[1723255326151,3.84905,2598.1,2597.4,6.33573]
[1723255326458,3.84882,2598.2,2597.4,6.33573]
[1723255326663,3.84923,2598.0,2597.4,2.4858]
[1723255326865,3.84979,2597.6,2597.0,3.85059]
[1723255327067,8.469528,2597.6,2597.0,3.85059]
[1723255327263,8.469528,2597.6,2596.9,6.3365]
[1723255327264,3.84994,2597.5,2596.9,6.3365]
[1723255329594,3.8496,2597.7,2596.9,2.4858]
[1723255329792,3.85024,2597.3,2596.9,2.4858]
[1723255330698,3.8503,2597.2,2596.9,2.4858]
[1723255330999,3.85032,2597.2,2596.9,2.4858]
[1723255331186,3.85039,2597.2,2596.9,2.4858]
[1723255331385,3.85039,2597.2,2596.6,10.18799]
[1723255331693,3.85024,2597.3,2596.7,3.85093]
[1723255331893,3.84993,2597.5,2597.0,3.85057]
[1723255332198,7.69991,2597.5,2596.9,3.85073]
[1723255332369,3.85001,2597.4,2596.8,3.85076]
[1723255332695,3.85001,2597.4,2596.8,7.70156]
[1723255333000,3.84993,2597.5,2596.8,5.0762759]
[1723255333163,3.85012,2597.4,2596.8,3.85076]
[1723255333568,3.84993,2597.5,2597.0,3.85056]
[1723255334363,3.84961,2597.7,2597.1,3.85034]
[1723255334605,3.84872,2598.3,2597.1,2.4858]
[1723255334606,3.84895,2598.2,2597.1,2.4858]
[1723255334784,3.84913,2598.0,2597.4,3.84988]
[1723255334956,3.84974,2597.6,2597.1,3.85043]
[1723255335155,2.2862,2597.9,2597.1,3.85043]
[1723255335156,3.84954,2597.8,2597.1,3.85043]
[1723255335395,3.84959,2597.7,2597.1,3.85043]
[1723255336568,3.84915,2598.0,2597.4,3.85]
[1723255336789,4.84590811,2598.0,2597.5,3.84985]
[1723255337180,3.84915,2598.0,2597.5,3.84985]
[1723255337584,3.84888,2598.2,2597.6,3.84959]
[1723255337801,3.84888,2598.2,2597.7,3.84952]
[1723255338104,4.1486,2598.4,2597.3,2.4858]
[1723255338105,3.84923,2598.0,2597.3,2.4858]
[1723255338300,3.84923,2598.0,2597.3,6.33592]
[1723255338301,3.84942,2597.8,2597.3,6.33592]
[1723255338659,3.84942,2597.8,2597.3,2.4858]
[1723255339303,3.84943,2597.8,2597.3,2.4858]
[1723255339513,3.84972,2597.6,2597.1,6.34944]
[1723255339800,3.84972,2597.6,2597.1,2.499]
[1723255340882,4.234373,2597.8,2596.8,3.8508]
[1723255340883,7.70013,2597.4,2596.8,3.8508]
[1723255341089,3.85039,2597.2,2596.7,2.499]
[1723255341402,3.85055,2597.1,2596.7,2.499]
[1723255341595,7.70082,2597.2,2596.7,2.499]
[1723255341795,7.70079,2597.2,2596.7,2.499]
[1723255342003,3.85039,2597.2,2596.7,2.499]
[1723255342176,3.85039,2597.2,2596.2,0.1245081]
[1723255342177,4.620435,2597.2,2596.4,7.70275]
[1723255342358,3.85053,2597.1,2596.5,3.85132]
[1723255344008,3.85059,2597.0,2596.4,3.85136]
[1723255344163,3.85059,2597.0,2596.4,7.70276]
[1723255344378,3.85059,2597.0,2596.4,3.85136]
[1723255344578,3.85034,2597.2,2596.4,3.85137]
[1723255344895,3.85034,2597.2,2596.6,3.8511]
[1723255345110,2.4848,2597.4,2596.3,2.3229]
[1723255345309,3.85106,2596.7,2596.3,2.3229]
[1723255345510,3.85119,2596.6,2596.3,2.3229]
[1723255346130,3.85119,2596.6,2596.2,0.1245081]
[1723255346131,4.621398,2596.6,2596.2,0.1245081]
[1723255346280,3.85119,2596.6,2596.2,0.1245081]
[1723255346485,3.85152,2596.4,2596.2,0.1245081]
[1723255346793,3.85163,2596.3,2596.2,0.1245081]
[1723255347637,3.8516,2596.4,2596.2,0.1245081]
[1723255347638,3.85126,2596.6,2596.2,0.1245081]
[1723255347784,3.0,2597.3,2596.2,0.1245081]
[1723255347785,3.85091,2596.8,2596.2,0.1245081]
[1723255348600,3.85036,2597.2,2596.3,3.8516]
[1723255348802,3.85036,2597.2,2596.5,7.70249]
[1723255349119,4.235396,2597.2,2596.5,7.70249]
[1723255349439,4.235396,2597.2,2596.6,6.174]
[1723255349591,8.085796,2597.2,2596.6,6.174]
[1723255349788,0.6513833,2597.7,2596.9,3.85065]
[1723255350039,0.6513833,2597.7,2596.2,0.36924891]
[1723255350040,3.8492,2598.0,2597.3,3.85011]
[1723255350200,3.8486,2598.4,2597.5,7.69955]
[1723255350201,3.84888,2598.2,2597.5,7.69955]
[1723255350390,3.84906,2598.1,2597.5,3.84973]
[1723255350591,3.84942,2597.8,2597.3,3.85007]